bitfinex/quotes_ETHUSD_20241103
["timestamp","ask_amount","ask_price","bid_price","bid_amount"]
[1730634573096,7.74521948,2456.5,2455.3,0.08145098]
[1730634573326,0.7711,2456.3,2455.3,0.08145098]
[1730634573531,0.7711,2456.3,2455.2,0.7566]
[1730634574191,0.7711,2456.3,2455.3,0.08144864]
[1730634575828,0.7711,2456.3,2455.2,0.7566]
[1730634577332,0.7711,2456.3,2455.1,0.0373465]
[1730634580148,0.7711,2456.3,2455.1,0.11879505]
[1730634580548,0.7711,2456.2,2455.2,0.7566]
[1730634580764,0.7711,2456.2,2455.3,0.08144348]
[1730634580965,0.7711,2456.2,2455.4,0.7566]
[1730634581123,0.7711,2456.2,2455.6,0.7566]
[1730634581458,0.7711,2456.2,2455.7,0.08142966]
[1730634582459,0.7711,2456.9,2455.7,0.08142966]
[1730634582662,0.7711,2456.7,2455.8,0.7566]
[1730634582900,0.7711,2456.7,2455.9,0.08142198]
[1730634583078,0.7711,2456.7,2456.0,0.7566]
[1730634583363,0.7711,2456.7,2456.0,0.83801573]
[1730634583533,0.7711,2456.7,2456.0,0.7566]
[1730634583858,0.7711,2456.7,2456.1,0.08141339]
[1730634584061,0.7711,2456.9,2456.2,0.7566]
[1730634584227,0.7711,2456.9,2456.3,0.08140968]
[1730634585381,0.7711,2457.3,2456.4,0.08140322]
[1730634585566,0.7711,2457.3,2456.5,0.7566]
[1730634585770,0.7711,2457.3,2456.6,0.08140216]
[1730634586529,0.7711,2457.3,2456.5,0.7566]
[1730634587353,0.7711,2457.3,2456.2,0.7566]
[1730634587885,0.7711,2457.3,2456.3,0.08140848]
[1730634588173,0.7711,2457.3,2456.2,0.7566]
[1730634588786,0.7711,2457.3,2456.3,0.08140849]
[1730634588984,0.7711,2457.3,2456.4,0.08140849]
[1730634589462,0.7711,2457.3,2456.2,0.7566]
[1730634590245,0.7711,2457.3,2456.3,0.08140849]
[1730634591267,0.7711,2457.3,2456.2,0.7566]
[1730634593784,0.7711,2457.3,2456.3,0.08141348]
[1730634595382,0.7711,2457.3,2456.3,0.55]
[1730634599107,0.7711,2457.3,2456.4,0.08140225]
[1730634599269,0.7711,2457.3,2456.5,0.8229]
[1730634599465,0.7711,2457.3,2456.6,0.08140133]
[1730634600794,0.7711,2457.3,2456.7,0.55]
[1730634601269,0.7711,2457.3,2456.6,0.55]
[1730634601967,7.32,2458.0,2456.8,0.8229]
[1730634602168,0.7714,2457.8,2456.9,0.08138908]
[1730634603607,0.7714,2457.8,2456.8,0.8229]
[1730634603766,0.7714,2457.8,2456.6,0.55]
[1730634603767,0.7714,2457.8,2456.6,1.3729]
[1730634604464,0.7714,2457.8,2456.7,0.0813911]
[1730634605667,0.7714,2457.8,2456.6,1.3729]
[1730634605964,1.58054,2457.8,2456.6,1.3729]
[1730634606280,0.7714,2457.7,2456.7,0.08139113]
[1730634608603,0.7714,2457.7,2456.6,1.3729]
[1730634608792,0.7714,2457.7,2456.7,0.08139117]
[1730634608996,0.7714,2457.7,2456.8,0.55]
[1730634609167,0.7714,2457.7,2456.9,0.08138451]
[1730634609668,0.7714,2457.7,2456.9,0.90428451]
[1730634610683,0.7714,2457.7,2456.9,0.8229]
[1730634612490,0.7714,2457.7,2457.0,0.08138629]
[1730634612700,0.7714,2457.7,2456.9,0.8229]
[1730634614781,0.7714,2457.7,2456.7,0.8098]
[1730634615112,0.7714,2457.7,2456.8,0.55]
[1730634616114,0.7714,2457.7,2456.5,0.8098]
[1730634616287,0.7714,2457.7,2456.6,0.55]
[1730634616490,0.7714,2457.7,2456.4,0.55]
[1730634617700,0.7714,2457.7,2456.1,1.23309463]
[1730634617898,0.7974,2457.6,2456.1,0.42329463]
[1730634620705,0.7974,2457.6,2456.2,0.08141059]
[1730634621212,0.7974,2457.6,2456.2,1.3598]
[1730634621404,0.7974,2457.6,2456.2,1.44120353]
[1730634622001,0.7974,2457.6,2456.2,1.3598]
[1730634622202,0.7974,2457.6,2456.4,0.55]
[1730634622732,0.7974,2457.6,2456.3,0.55]
[1730634623935,0.7974,2457.6,2456.1,0.42329463]
[1730634625302,0.7974,2457.6,2456.2,0.55]
[1730634627837,0.7974,2457.6,2456.2,0.70935381]
[1730634628015,0.81174,2457.5,2456.2,0.70935381]
[1730634628217,0.7956,2457.4,2456.2,0.70935381]
[1730634628729,0.7956,2457.4,2456.3,0.15935381]
[1730634628901,0.7956,2457.4,2456.2,0.70935381]
[1730634629445,0.7956,2457.4,2456.2,0.15935381]
[1730634629745,0.7956,2457.4,2456.2,0.40822441]
[1730634630448,0.7956,2457.4,2456.3,0.08141146]
[1730634631143,0.7956,2457.4,2456.2,0.40822441]
[1730634631825,0.7956,2457.4,2456.2,0.15935381]
[1730634632068,0.7956,2457.2,2456.0,0.15935381]
[1730634632387,0.7956,2456.9,2455.6,0.15946334]
[1730634632659,0.7956,2456.9,2455.7,0.15946334]
[1730634632870,0.7956,2456.9,2455.7,0.24089626]
[1730634633159,0.7956,2456.9,2455.7,0.15946334]
[1730634633362,0.7956,2456.9,2455.6,1.84256879]
[1730634633569,0.7956,2456.9,2455.7,0.15946334]
[1730634633741,0.7956,2456.9,2455.7,0.6476406]
[1730634633947,0.7956,2456.9,2455.8,0.70532656]
[1730634634252,0.7956,2456.9,2455.8,0.55]
[1730634636552,0.7956,2456.9,2455.7,0.55]
[1730634640869,0.7956,2456.9,2455.8,0.8356215]
[1730634642229,0.7568,2456.8,2455.8,0.7542]
[1730634644345,0.7568,2456.8,2455.9,0.08141882]
[1730634645867,0.7568,2456.8,2455.9,0.55]
[1730634647174,0.7568,2456.8,2456.2,0.7538]
[1730634647467,0.7568,2456.8,2456.3,0.55]
[1730634648674,0.7568,2456.8,2456.1,0.55]
[1730634649648,0.7568,2456.8,2455.9,0.55]
[1730634650175,0.7568,2456.8,2455.6,0.91299262]
[1730634650374,0.7568,2456.8,2455.7,0.41677274]
[1730634650745,0.7568,2456.8,2455.8,0.08142172]
[1730634651170,0.7568,2456.8,2455.7,0.57596536]
[1730634651549,0.7568,2456.8,2455.8,0.0814217]
[1730634651952,0.7568,2456.8,2455.8,0.55]
[1730634652565,0.7568,2456.8,2455.8,0.63142169]
[1730634653255,0.7568,2456.8,2455.8,0.55]
[1730634653681,0.7568,2456.8,2455.9,0.08142167]
[1730634653881,0.7568,2456.8,2455.8,0.55]
[1730634654043,0.7568,2456.8,2455.8,1.4019012]
[1730634654241,0.7568,2456.8,2455.9,0.30965257]
[1730634655269,0.7568,2456.8,2456.0,0.08142226]
[1730634655657,0.7568,2456.8,2455.9,0.30965257]
[1730634655882,0.7568,2456.8,2456.0,0.08142225]
[1730634656079,0.7568,2456.8,2455.8,0.08142224]
[1730634656582,0.7568,2456.8,2455.8,0.24068252]
[1730634656781,0.7568,2456.8,2455.6,0.15926028]
[1730634656949,0.7568,2456.8,2455.7,0.70926028]
[1730634657150,0.7568,2456.8,2455.8,0.15926028]
[1730634657350,0.7568,2456.8,2455.9,0.08142229]
[1730634658489,0.7568,2456.8,2455.9,0.24068257]
[1730634658690,0.7568,2456.8,2455.9,0.08142229]
[1730634658993,0.7568,2456.8,2456.0,0.08142155]
[1730634659985,0.7568,2456.8,2455.8,0.15935126]
[1730634660185,0.7568,2456.8,2455.9,0.15935126]
[1730634660384,0.7568,2456.8,2456.0,0.2407729]
[1730634660590,0.7568,2456.8,2456.0,0.08142164]
[1730634661161,0.7568,2456.8,2456.1,0.15943002]
[1730634661389,0.7568,2456.8,2455.7,1.61948859]
[1730634661390,0.7568,2456.8,2455.8,0.41464555]
[1730634661695,0.7568,2456.8,2455.9,0.70946883]
[1730634661880,0.7568,2456.8,2456.0,0.15946883]
[1730634662058,0.7568,2456.8,2455.9,0.55]
[1730634662059,0.7568,2456.8,2456.1,0.15946883]
[1730634662258,0.7568,2456.8,2456.2,0.08141836]
[1730634662790,0.7568,2456.8,2456.2,0.24092535]
[1730634662970,0.7568,2456.8,2456.2,0.08141836]
[1730634663170,0.7568,2456.8,2456.1,0.15950699]
[1730634663366,0.7568,2456.8,2456.2,0.15950699]
[1730634663666,0.7568,2456.8,2456.0,0.15952955]
[1730634663867,0.7568,2456.8,2456.1,0.15952955]
[1730634664069,0.7568,2456.8,2455.9,0.80517672]
[1730634664394,0.7568,2456.8,2456.0,0.15953029]
[1730634664709,0.7568,2456.8,2456.1,0.15953029]
[1730634664856,0.7568,2456.8,2456.2,0.24095619]
[1730634665054,0.7568,2456.8,2456.1,0.55]
[1730634665271,0.7568,2456.8,2455.9,0.55]
[1730634665498,0.7568,2456.8,2455.8,0.55]
[1730634666160,0.7568,2456.8,2455.9,0.25530971]
[1730634666353,0.7568,2456.8,2456.0,0.55]
[1730634666570,0.7568,2456.8,2456.0,0.80531506]
[1730634667073,0.7568,2456.8,2456.1,0.15955529]
[1730634667262,0.7568,2456.8,2456.0,0.80531506]
[1730634667263,0.7568,2456.8,2456.2,0.15955529]
[1730634667593,0.7568,2456.8,2456.0,1.61981506]
[1730634667594,0.7568,2456.8,2456.3,0.24096479]
[1730634667800,0.7568,2456.8,2456.4,0.15955529]
[1730634668091,7.32,2457.4,2456.6,0.55]
[1730634668092,0.7715,2457.4,2456.6,0.55]
[1730634668688,0.7715,2457.4,2456.7,0.15951146]
[1730634668890,0.7715,2457.4,2456.8,0.97401146]
[1730634669058,0.7715,2457.4,2456.6,1.3645]
[1730634669254,0.7715,2457.4,2456.8,0.55]
[1730634669495,0.7715,2457.4,2456.5,0.55]
[1730634669807,0.7715,2457.4,2456.3,0.25520911]
[1730634670100,0.7715,2457.4,2456.4,0.0814066]
[1730634670393,0.7715,2457.4,2456.3,0.32027805]
[1730634671103,0.7715,2457.4,2456.4,0.08140858]
[1730634672288,0.7715,2457.4,2456.4,0.24090909]
[1730634672758,0.7715,2457.4,2456.4,0.08140858]
[1730634673397,0.7715,2457.4,2456.4,0.08140852]
[1730634673562,0.7715,2457.4,2456.2,0.24090564]
[1730634673758,0.7715,2457.4,2456.3,0.15949712]
[1730634674082,0.7715,2457.4,2456.4,0.08140852]
[1730634675455,0.7715,2457.4,2456.4,0.08140853]
[1730634676899,0.7715,2457.4,2456.3,0.24090859]
[1730634677200,0.7715,2457.4,2456.3,0.08140852]
[1730634677705,0.7715,2457.4,2456.3,0.24090479]
[1730634678196,0.7715,2457.4,2456.3,0.15949627]
[1730634678499,0.7715,2457.4,2456.3,0.55]
[1730634678969,0.7715,2457.4,2456.4,0.15948836]
[1730634679172,0.7715,2457.4,2456.5,0.08140256]
[1730634679660,0.7715,2457.4,2456.6,0.55]
[1730634679969,0.7715,2457.4,2456.7,0.15947074]
[1730634680298,0.7715,2457.4,2456.6,0.55]
[1730634680964,0.7715,2457.4,2456.7,0.23694347]
[1730634683595,0.7715,2457.4,2456.2,4.23040762]
[1730634683800,0.7715,2457.4,2456.3,0.70486118]
[1730634684293,0.7715,2457.4,2456.3,4.76215295]
[1730634684487,0.7715,2457.4,2456.2,1.23040762]
[1730634684686,0.7715,2457.4,2456.3,3.55]
[1730634684860,0.7715,2457.4,2456.4,1.2534719]
[1730634685059,0.7715,2457.4,2456.5,0.08140186]
[1730634686496,0.7715,2457.4,2456.5,0.24084299]
[1730634687483,0.7715,2457.4,2456.5,0.15944113]
[1730634687800,0.7715,2457.4,2456.4,4.60634642]
[1730634688037,0.7715,2457.4,2456.5,0.64732615]
[1730634688299,0.7715,2457.4,2456.5,0.72872809]
[1730634688511,0.7715,2457.4,2456.5,0.56928884]
[1730634688658,0.7715,2457.4,2456.5,0.72872809]
[1730634690158,0.7715,2457.4,2456.5,0.4878869]
[1730634690395,0.7715,2457.4,2456.3,0.55]
[1730634690396,0.7715,2457.4,2456.3,1.60846863]
[1730634690920,0.7715,2457.4,2456.3,1.60853047]
[1730634691259,0.7715,2457.4,2456.4,0.70586935]
[1730634694123,0.7715,2457.4,2456.4,0.1594516]
[1730634694322,0.7715,2457.4,2456.4,1.21836837]
[1730634694531,0.7715,2457.4,2456.4,1.21841389]
[1730634695195,0.7715,2457.4,2456.5,0.26216424]
[1730634700721,0.7715,2457.4,2456.6,0.08140214]
[1730634701091,0.7715,2457.4,2456.5,0.26216424]
[1730634701092,0.7715,2457.4,2456.5,0.42165874]
[1730634701542,0.7715,2457.4,2456.5,0.26216424]
[1730634701842,0.7715,2457.4,2456.5,1.32161028]
[1730634702146,0.7715,2457.4,2456.6,0.21748388]
[1730634702445,0.7715,2457.4,2456.3,1.40322854]
[1730634702607,0.7715,2457.4,2456.4,1.76579565]
[1730634702949,0.7715,2457.4,2456.3,1.40322854]
[1730634703092,0.7715,2457.4,2456.4,1.92529132]
[1730634703294,0.7715,2457.4,2456.3,0.85322854]
[1730634703598,0.7715,2457.4,2456.2,0.85322854]
[1730634703798,0.7715,2457.4,2456.3,1.92542668]
[1730634704139,0.7715,2457.4,2456.2,1.26269837]
[1730634704290,0.7715,2457.4,2456.3,1.92545133]
[1730634704497,0.7715,2457.4,2456.3,1.05955224]
[1730634705242,0.7715,2457.4,2456.2,1.26269837]
[1730634705540,0.7715,2457.4,2456.3,2.20516339]
[1730634705728,0.7715,2457.4,2456.3,0.2797711]
[1730634706198,0.7715,2457.4,2456.3,1.33929678]
[1730634706395,0.7715,2457.4,2456.1,1.10848188]
[1730634706632,0.7715,2457.4,2456.2,1.76595894]
[1730634706849,0.7715,2457.4,2456.0,1.10848188]
[1730634707063,0.7715,2457.4,2456.1,1.92556397]
[1730634707272,0.7715,2457.4,2456.2,0.15954089]
[1730634707564,0.7715,2457.4,2456.1,0.43138887]
[1730634707565,0.7715,2457.4,2456.1,1.49087992]
[1730634707756,0.7715,2457.4,2456.1,1.05949105]
[1730634708157,0.7715,2457.4,2456.0,0.85322854]
[1730634708362,0.7715,2457.4,2456.1,0.86586231]
[1730634708560,0.7715,2457.4,2456.0,1.05936719]
[1730634708858,0.7715,2457.4,2456.1,0.86577452]
[1730634709054,0.7715,2457.4,2456.0,1.91258862]
[1730634709262,0.7715,2457.4,2456.1,1.08256706]
[1730634709448,0.7715,2457.4,2456.1,0.2167842]
[1730634709651,0.7715,2457.4,2456.0,1.0592783]
[1730634709652,0.7815,2457.4,2456.0,1.0592783]
[1730634709968,0.7815,2457.4,2456.1,0.15951717]
[1730634710121,0.7815,2457.4,2456.0,1.0592783]
[1730634710316,0.7815,2457.4,2456.1,0.15951594]
[1730634710676,0.56,2457.3,2456.0,1.0592783]
[1730634710826,0.56,2457.3,2455.9,1.05919621]
[1730634710827,0.7883,2457.1,2455.9,1.05919621]
[1730634711020,0.7883,2457.1,2456.0,0.15951204]
[1730634711321,0.7883,2457.1,2456.0,0.20719368]
[1730634711525,0.7883,2457.1,2456.0,1.26618192]
[1730634711747,0.7883,2457.1,2456.1,0.15946771]
[1730634712057,0.7883,2457.1,2456.0,1.26618192]
[1730634712058,0.7883,2457.1,2456.0,1.26618401]
[1730634712268,0.7883,2457.1,2456.1,0.1594701]
[1730634712419,0.7883,2457.1,2456.1,0.22788826]
[1730634714639,0.7883,2457.1,2456.2,0.15946098]
[1730634714835,0.7883,2457.1,2456.3,0.15945151]
[1730634715064,0.7883,2457.1,2456.3,0.15945284]
[1730634715228,0.7883,2457.1,2456.2,0.55]
[1730634715426,0.7883,2457.1,2456.3,0.50861599]
[1730634715621,0.7883,2457.1,2456.3,0.34914582]
[1730634716069,0.7883,2457.1,2456.4,0.08140848]
[1730634716395,0.7883,2457.1,2456.3,0.34914582]
[1730634716525,0.7883,2457.1,2456.3,1.40798724]
[1730634716719,0.7883,2457.1,2456.4,0.52198352]
[1730634716935,0.7883,2457.1,2456.4,0.28112158]
[1730634718368,0.7883,2457.1,2456.4,0.98691232]
[1730634718571,0.7883,2457.1,2456.4,0.28112158]
[1730634721430,0.7883,2457.1,2456.5,0.08139963]
[1730634721899,0.7883,2457.1,2456.5,0.34007155]
[1730634723369,0.7883,2457.1,2456.6,0.55]
[1730634723693,0.7883,2457.1,2456.7,0.08139354]
[1730634723902,12.32,2458.1,2456.8,0.8164]
[1730634723903,0.8125,2457.3,2456.8,0.8164]
[1730634724054,0.8125,2458.1,2456.9,0.08138783]
[1730634724256,0.8125,2458.0,2456.9,0.57703183]
[1730634724475,0.8125,2458.0,2457.0,0.55]
[1730634724653,0.8125,2458.0,2457.1,0.0813757]
[1730634724876,0.8125,2458.0,2457.2,0.8164]
[1730634725103,0.8125,2458.0,2457.0,1.3664]
[1730634725267,0.8125,2458.0,2457.1,0.4862044]
[1730634725771,0.8125,2458.0,2456.7,0.55]
[1730634726393,0.8125,2458.0,2456.7,0.15940932]
[1730634726768,0.8125,2458.0,2456.8,0.08139026]
[1730634727383,0.8125,2458.0,2456.6,0.15940932]
[1730634727559,0.8125,2458.0,2456.7,0.15940932]
[1730634727880,0.8125,2458.0,2456.6,1.21742567]
[1730634728193,0.8125,2458.0,2456.7,0.08139019]
[1730634728401,0.8125,2458.0,2456.7,0.33197143]
[1730634729087,0.8125,2458.0,2456.7,0.49137194]
[1730634729311,0.8125,2458.0,2456.7,0.25058124]
[1730634729530,0.8125,2458.0,2456.5,0.70941028]
[1730634729728,0.8125,2458.0,2456.5,0.55]
[1730634729944,0.8125,2458.0,2456.5,0.15941216]
[1730634730308,0.8125,2458.0,2456.5,0.24080886]
[1730634730508,0.8125,2458.0,2456.5,0.0813967]
[1730634730705,0.8125,2458.0,2456.5,0.15941216]
[1730634730897,0.8125,2458.0,2456.4,0.15941216]
[1730634731204,0.8125,2457.8,2456.5,0.15941216]
[1730634733395,0.8125,2457.8,2456.4,0.41669606]
[1730634733892,0.8125,2457.8,2456.4,2.18023344]
[1730634734100,0.8125,2457.8,2456.4,1.47480715]
[1730634734413,0.8125,2457.8,2456.4,1.47481573]
[1730634734626,0.7744,2457.6,2456.5,0.31444443]
[1730634735437,0.7744,2457.6,2456.5,0.47386136]
[1730634735811,0.7744,2457.6,2456.5,0.31444443]
[1730634736443,0.7744,2457.6,2456.4,0.15941733]
[1730634736738,0.7744,2457.6,2456.6,0.0814028]
[1730634736957,0.7744,2457.6,2456.4,0.24081464]
[1730634737256,0.7744,2457.6,2456.4,0.08140269]
[1730634737820,0.7744,2457.6,2456.3,1.05811967]
[1730634738021,0.7744,2457.6,2456.4,1.35598992]
[1730634738217,0.7744,2457.6,2456.4,0.49113482]
[1730634738831,0.7744,2457.6,2456.5,0.08140272]
[1730634739234,0.7744,2457.6,2456.4,0.49113482]
[1730634739627,0.7744,2457.6,2456.5,0.15941046]
[1730634739953,0.7744,2457.6,2456.4,0.49113482]
[1730634740983,0.7744,2457.6,2456.4,0.65054569]
[1730634741123,0.7744,2457.6,2456.3,1.05815553]
[1730634741325,0.7744,2457.6,2456.4,0.86485031]
[1730634741530,0.7744,2457.6,2456.4,0.15940064]
[1730634741843,0.7744,2457.6,2456.3,1.21755617]
[1730634742039,0.7744,2457.6,2456.4,0.86486107]
[1730634742237,0.7744,2457.6,2456.4,0.15940064]
[1730634744347,0.7744,2457.6,2456.3,1.21761087]
[1730634744555,0.7744,2457.6,2456.3,0.15940064]
[1730634744943,0.81325,2457.7,2456.3,0.15940064]
[1730634744944,0.7744,2457.4,2456.3,0.15940064]
[1730634746072,0.7744,2457.4,2456.1,0.67861808]
[1730634746073,0.7744,2457.4,2456.1,0.42355048]
[1730634746572,0.7744,2457.4,2456.2,0.08141726]
[1730634748344,0.55,2457.3,2456.1,0.42355048]
[1730634748571,0.55,2457.3,2455.8,1.91147821]
[1730634748572,0.7882,2457.2,2455.9,0.15935529]
[1730634748743,0.7882,2457.2,2455.9,0.15935077]
[1730634749768,0.7882,2457.0,2455.9,0.15935077]
[1730634749979,0.7882,2457.0,2455.8,0.15935077]
[1730634750540,0.7882,2457.0,2455.9,0.08142442]
[1730634750886,0.7882,2457.0,2455.7,2.3344184]
[1730634750887,0.7882,2457.0,2455.8,0.15931212]
[1730634751181,0.7882,2457.0,2455.7,0.15931212]
[1730634751548,0.7882,2457.0,2455.7,0.2407447]
[1730634751747,0.7882,2457.0,2455.8,0.70532843]
[1730634752013,0.7882,2457.0,2455.7,0.08143258]
[1730634752294,0.7882,2457.0,2455.7,0.86462971]
[1730634752517,0.7882,2457.0,2455.8,0.70532371]
[1730634752651,0.7882,2457.0,2455.7,0.159306]
[1730634753154,0.7882,2457.0,2455.7,0.08143249]
[1730634754196,0.7882,2457.0,2455.8,0.70520827]
[1730634755190,0.7882,2457.0,2455.7,0.08143249]
[1730634755862,0.7882,2456.8,2455.7,0.08143249]
[1730634756282,0.7882,2456.8,2455.6,1.01253454]
[1730634756464,0.7882,2456.8,2455.7,0.70512883]
[1730634757002,0.7882,2456.8,2455.7,0.78656111]
[1730634757168,0.7882,2456.8,2455.7,0.08143228]
[1730634758388,0.7882,2456.8,2455.6,0.08143224]
[1730634758707,0.7882,2456.8,2455.7,0.70502278]
[1730634759580,0.7882,2456.8,2455.8,0.08143216]
[1730634759773,0.7882,2456.8,2455.6,2.22466181]
[1730634759774,0.7882,2456.8,2455.6,3.28225978]
[1730634759975,0.7882,2456.8,2455.7,0.70492838]
[1730634761090,0.7882,2456.8,2455.8,0.08142381]
[1730634761318,0.7882,2456.7,2455.8,0.38252521]
[1730634763685,0.7882,2456.7,2455.9,1.3731]
[1730634764017,0.7882,2456.7,2455.8,1.31351467]
[1730634764177,0.7882,2456.7,2455.9,0.70476522]
[1730634764373,0.7882,2456.7,2455.8,1.15432994]
[1730634764578,0.7882,2456.7,2455.9,1.23352067]
[1730634764886,0.7882,2456.7,2456.0,0.70474421]
[1730634765190,0.7882,2456.7,2455.9,0.44735488]
[1730634766099,0.7882,2456.7,2455.8,0.55]
[1730634766279,0.7882,2456.7,2455.9,0.70475642]
[1730634766706,0.7882,2456.7,2455.7,1.8354567]
[1730634766923,0.7882,2456.7,2455.8,0.70479327]
[1730634767123,0.7882,2456.7,2455.7,0.85322854]
[1730634767425,0.7882,2456.7,2455.8,0.5494289]
[1730634770888,0.7882,2456.7,2455.6,2.49428957]
[1730634771090,0.7882,2456.7,2455.7,0.70488859]
[1730634772392,0.7882,2456.7,2455.7,0.86408617]
[1730634772629,0.7882,2456.7,2455.8,0.70488859]
[1730634774541,0.7882,2456.7,2455.7,1.21640253]
[1730634774705,0.7882,2456.7,2455.8,0.70535421]
[1730634775340,0.7882,2456.7,2455.8,0.86455179]
[1730634775640,0.7882,2456.7,2455.7,2.06963107]
[1730634775842,0.7882,2456.7,2455.8,0.70542111]
[1730634776210,0.7882,2456.7,2455.8,0.86461869]
[1730634776405,0.7882,2456.7,2455.8,0.15919758]
[1730634778204,0.7882,2456.7,2455.8,0.54486659]
[1730634778399,0.7882,2456.7,2455.9,0.0814318]
[1730634778608,0.7882,2456.7,2455.9,0.24062938]
[1730634778800,0.7882,2456.7,2455.9,0.15919758]
[1730634780017,0.7882,2456.7,2455.8,0.38566901]
[1730634780510,0.7882,2456.7,2455.9,0.86497135]
[1730634780825,0.7882,2456.7,2455.9,0.15935119]
[1730634781350,0.7882,2456.7,2455.9,0.15937654]
[1730634782717,0.7882,2456.7,2455.8,1.0585119]
[1730634782919,0.7882,2456.7,2455.9,0.8652432]
[1730634783115,0.7882,2456.7,2455.9,0.15942703]
[1730634783316,0.7882,2456.7,2455.9,0.15945594]
[1730634783525,0.7882,2456.7,2455.8,0.15945905]
[1730634783704,0.7882,2456.7,2455.7,1.0585119]
[1730634783921,0.7882,2456.7,2455.8,0.86536214]
[1730634784114,0.7882,2456.7,2455.7,1.0585119]
[1730634784452,0.8331,2456.5,2455.5,1.05888114]
[1730634784620,0.8331,2456.5,2455.4,1.05913223]
[1730634784822,0.8331,2456.5,2455.4,1.7651204]
[1730634785051,0.8331,2456.5,2455.5,0.15948935]
[1730634785346,0.8331,2456.5,2455.3,1.05913223]
[1730634785652,0.8331,2456.5,2455.4,0.86547633]
[1730634785853,0.8331,2456.5,2455.3,1.05913223]
[1730634786150,0.8331,2456.5,2455.4,0.86544025]
[1730634786448,0.55,2456.4,2455.3,1.05913223]
[1730634786621,0.8331,2456.3,2455.4,0.15948957]
[1730634786804,0.8331,2456.3,2455.3,1.05913223]
[1730634787003,0.8331,2456.3,2455.4,0.15949437]
[1730634787352,0.8331,2456.3,2455.3,1.05913223]
[1730634787514,0.8331,2456.3,2455.4,0.15949682]
[1730634787713,0.8331,2456.3,2455.3,0.35662104]
[1730634788016,0.8331,2456.3,2455.4,0.1594977]
[1730634788225,0.8331,2456.3,2455.3,0.35662104]
[1730634788446,0.8331,2456.3,2455.4,0.15950311]
[1730634788744,0.8331,2456.3,2455.3,0.35662104]
[1730634788950,0.8331,2456.3,2455.4,0.15950213]
[1730634789147,0.8331,2456.3,2455.3,0.35662104]
[1730634789348,0.8331,2456.3,2455.4,0.15950008]
[1730634789553,0.8331,2456.3,2455.3,1.4154694]
[1730634789761,0.8331,2456.3,2455.4,0.15947591]
[1730634790052,0.8331,2456.3,2455.4,0.22686979]
[1730634790222,0.8331,2456.3,2455.5,0.15946698]
[1730634790838,0.8331,2456.3,2455.4,1.36716834]
[1730634791042,0.8331,2456.3,2455.5,0.15944636]
[1730634791243,0.8331,2456.3,2455.4,1.28571815]
[1730634791452,0.8331,2456.3,2455.4,0.22686979]
[1730634792354,0.8331,2456.3,2455.4,0.38629509]
[1730634792652,0.8331,2456.3,2455.3,0.35662104]
[1730634793355,0.8331,2456.3,2455.3,0.59748406]
[1730634794146,0.8331,2456.3,2455.3,0.51603752]
[1730634794650,0.8331,2456.3,2455.4,0.15941648]
[1730634796324,0.8331,2456.3,2455.3,1.49677317]
[1730634796524,0.8331,2456.3,2455.4,0.23500017]
[1730634797252,0.8331,2456.3,2455.3,0.15938847]
[1730634797630,0.8331,2456.3,2455.2,0.15938847]
[1730634800439,0.8331,2456.3,2455.1,1.33654261]
[1730634800643,0.8331,2456.3,2455.2,0.70541037]
[1730634801165,0.55,2456.2,2455.2,0.70541037]
[1730634801367,0.55,2456.2,2455.1,0.19673497]
[1730634801368,0.7987,2456.1,2455.1,0.0373465]
[1730634806199,0.55,2456.0,2455.1,0.0373465]
[1730634806406,0.828,2455.9,2455.1,0.0373465]
[1730634807793,0.828,2455.7,2455.1,0.0373465]
[1730634808560,0.828,2455.5,2455.1,0.0373465]
[1730634830420,0.55,2455.4,2455.1,0.0373465]
[1730634830624,1.378,2455.2,2455.1,0.0373465]
[1730634831489,2.3178,2455.2,2455.1,0.0373465]
[1730634834626,1.378,2455.2,2455.1,0.0373465]
[1730634835220,0.828,2455.2,2455.1,0.0373465]
[1730634844557,1.378,2455.2,2455.1,0.0373465]
[1730634845155,1.388,2455.2,2455.1,0.0373465]
[1730634845358,1.378,2455.2,2455.1,0.0373465]
[1730634845650,2.3158,2455.2,2455.1,0.0373465]
[1730634846262,5.74099468,2455.2,2455.1,0.0373465]
[1730634850073,2.19099468,2455.2,2455.1,0.0373465]
[1730634850239,1.25319468,2455.2,2455.1,0.0373465]
[1730634852956,0.828,2455.2,2455.1,0.0373465]
[1730634853428,1.39667956,2455.4,2455.1,0.0373465]
[1730634853546,0.7587,2455.4,2455.1,0.0373465]
[1730634854281,0.82934456,2455.5,2455.1,0.0373465]
[1730634854573,0.07064456,2455.5,2455.2,0.7587]
[1730634854976,0.7587,2455.7,2455.2,0.7587]
[1730634856478,1.18381616,2455.9,2455.2,0.7587]
[1730634859994,0.7587,2455.8,2455.2,0.7587]
[1730634860300,0.55,2455.5,2455.1,0.0373465]
[1730634860496,0.7587,2455.4,2455.1,0.0373465]
[1730634865177,0.55,2455.5,2455.1,0.0373465]
[1730634865178,0.7587,2455.2,2455.1,0.0373465]
[1730634865404,1.3087,2455.2,2455.1,0.0373465]
[1730634873264,0.7755,2455.7,2455.2,0.8159]
[1730634873669,1.20062871,2455.7,2455.2,0.8159]
[1730634874879,0.42512871,2455.7,2455.2,0.8159]
[1730634879210,0.49577662,2455.7,2455.2,0.8159]
[1730634884638,0.49577662,2455.7,2455.1,0.0373465]
[1730634884933,0.49577662,2455.7,2455.2,0.8319]
[1730634886228,0.07064791,2455.7,2455.2,0.8319]
[1730634886530,3.07064528,2456.1,2455.2,0.8319]
[1730634886744,1.23100837,2456.1,2455.2,0.8319]
[1730634886905,0.07064528,2456.1,2455.2,0.8319]
[1730634888416,0.55,2456.2,2455.2,0.8319]
[1730634888740,1.21298565,2456.3,2455.2,0.8319]
[1730634888741,0.42508565,2456.3,2455.2,0.8319]
[1730634888908,0.42508565,2456.3,2455.3,0.08145033]
[1730634889111,0.42508565,2456.3,2455.2,0.8319]
[1730634896154,1.3379,2456.2,2455.2,0.8319]
[1730634896702,0.55,2456.2,2455.2,0.8319]